Cogmind - Beta 13 @@@ ROGUE MODE // 2024.08.03 @ 12:57:43 Player: Wotf Result: Destroyed by 9H-U0O(R) with Subdweller Laser Performance ------------- Evolutions (0) 0 Regions Visited (3) 600 Robots Destroyed (17) 85 Value Destroyed (409) 409 Prototype IDs (10) 200 Alien Tech Used (0) 0 Bonus (0) 0 TOTAL SCORE: 1294 Bonus ------- None Cogmind --------- Core Integrity 0/250 Matter 250/300 Energy 200/200 System Corruption 0% Temperature Cool (6) Movement Walking (140) Location -10/Subcaves Parts ------- > --- POWER (1) -------- Subdweller Power Source > --- PROPULSION (2) --- Makeshift Leg Subdweller Monowheel > --- UTILITY (2) ------ Small Storage Unit Terrain Scanner > --- WEAPON (2) ------- Battle Cannon Battle Cannon > --- INVENTORY (8) ---- Ion Engine Scrap Shield Power Bank Subdweller Beam Cannon Rocket Launcher Makeshift Hammer Makeshift Spear Peak State ------------ > --- POWER ------------ Subdweller Power Source > --- PROPULSION ------- Makeshift Leg Subdweller Monowheel > --- UTILITY ---------- Small Storage Unit Terrain Scanner > --- WEAPON ----------- Battle Cannon Battle Cannon > --- INVENTORY -------- Ion Engine Large Matter Pod Scrap Shield Power Bank Subdweller Beam Cannon Rocket Launcher Makeshift Spear [Rating: 16] Favorites ----------- Power Ion Engine Engine Ion Engine Propulsion Light Treads Treads Light Treads Leg Makeshift Leg Wheel Subdweller Monowheel Utility Small Storage Unit Device Terrain Scanner Storage Small Storage Unit Protection Light Armor Plating Weapon Medium Laser Energy Gun Medium Laser Ballistic Gun Light Assault Rifle Ballistic Cannon Battle Cannon Launcher Rocket Launcher Build | -11 -10 -10 -10 ------- Run | Yrd Mat Min Sub Slots Evolved . | . . . . Power . | . . . . Propulsion . | . . . . Utility . | . . . . Weapon . | . . . . Parts Attached 28 | 6 7 2 13 Power 4 | 1 1 . 2 Engine 4 | 1 1 . 2 Core . | . . . . Reactor . | . . . . Propulsion 8 | 2 2 . 4 Treads 3 | . 2 . 1 Leg 1 | . . . 1 Wheel 4 | 2 . . 2 Hover . | . . . . Flight . | . . . . Utility 3 | 1 2 . . Device 1 | . 1 . . Storage 1 | 1 . . . Processor . | . . . . Hackware . | . . . . Protection 1 | . 1 . . Artifact . | . . . . Weapon 13 | 2 2 2 7 Energy Gun 4 | 1 1 1 1 Energy Cannon . | . . . . Ballistic Gun 5 | 1 1 1 2 Ballistic Cannon 2 | . . . 2 Launcher 2 | . . . 2 Special Weapon . | . . . . Impact Weapon . | . . . . Slashing Weapon . | . . . . Piercing Weapon . | . . . . Special Melee Weapon . | . . . . Unidentified Prototypes . | . . . . Parts Lost 6 | . 6 . . Power 1 | . 1 . . Propulsion 2 | . 2 . . Utility 1 | . 1 . . Weapon 2 | . 2 . . Highest Loss Streak 5 | . 5 . . To Critical Strikes . | . . . . Average Slot Usage (%) 98 | . 90 100 99 Engine 13 | . 13 14 14 Treads 21 | . 21 28 15 Wheel 5 | . 6 . 10 Device 12 | . 5 14 14 Storage 14 | . 14 14 14 Energy Gun 15 | . 10 25 8 Ballistic Gun 7 | . 17 2 8 Ballistic Cannon 4 | . . . 11 Naked Turns . | . . . . Heaviest Build 17 | 11 13 14 17 Greatest Support 40 | 20 40 40 40 Greatest Overweight (x) . | . . . . Average Overweight (x) . | . . . . Largest Inventory Capacity 8 | 8 8 8 8 Average Capacity 7 | 7 8 8 8 Most Carried 8 | 7 8 8 8 Average Carried 7 | 4 5 7 7 Final Capacity 8 | 8 8 8 8 Final Carried 8 | 6 6 7 8 Class Distribution -------------------- 100% | Mutant Dominant Class ---------------- Mutant | -10/Materials Mutant | -10/Mines Mutant | -10/Subcaves Resources | -11 -10 -10 -10 ----------- Run | Yrd Mat Min Sub Matter Collected 742 | 217 298 21 206 Remotely . | . . . . Salvage Created 531 | . 295 196 40 Parts 29 | . 14 8 7 Haulers Intercepted . | . . . . Recyclers Shooed . | . . . . Parts Field Recycled . | . . . . Retrieved Matter . | . . . . Parts Self-Destructed 4 | . . . 4 Prevented 1 | . . . 1 Kills | -11 -10 -10 -10 ------- Run | Yrd Mat Min Sub Combat Hostiles Destroyed 14 | . 7 3 4 Guns 10 | . 7 3 . Cannons 1 | . . . 1 AOE 3 | . . . 3 Classes Destroyed 5 | . 2 2 1 Recycler 2 | . . 2 . Watcher 1 | . 1 . . Swarmer 5 | . . 3 2 Grunt 7 | . 7 . . Subdweller 2 | . . . 2 Best Kill Streak 5 | . 4 5 2 Combat Bots Only 4 | . 4 3 2 Max Kills in Single Turn 1 | . 1 1 1 Gunslinging . | . . . . Exploded 1 | . . . 1 Melee . | . . . . Uniques/NPCs Destroyed . | . . . . Combat | -11 -10 -10 -10 -------- Run | Yrd Mat Min Sub Hostile Shots Fired 107 | . 76 14 17 Missed 18 | . 9 4 5 Damage Taken 1130 | . 817 79 234 Core 261 | . 153 8 100 Absorbed by Shields . | . . . . Core Remaining (%) 100 | 100 . . . Volleys Fired 80 | . 40 11 29 Largest 2 | . 2 2 2 Hottest 90 | . 60 90 78 Shots Fired 143 | . 80 22 41 Gun 122 | . 80 22 20 Cannon 18 | . . . 18 Launcher 3 | . . . 3 Special . | . . . . Kinetic 74 | . 53 . 21 Thermal 66 | . 27 22 17 Explosive 3 | . . . 3 Electromagnetic . | . . . . Robot Hit Streak 14 | . 8 11 14 Robot Miss Streak 2 | . 2 1 1 Penetration Max . | . . . . Secondary Targets 1 | . 1 . . Max Gunslinging Chain 1 | . 1 . . Shots Hit Robots 83 | . 57 17 9 Core Hits 31 | . 20 7 4 Critical Kills . | . . . . Critical Parts Destroyed . | . . . . Critical Strikes 2 | . . 2 . Burn 2 | . . 2 . Melee Attacks . | . . . . Impact . | . . . . Slashing . | . . . . Piercing . | . . . . Sneak Attacks . | . . . . Combat Hostiles . | . . . . Follow-up Attacks . | . . . . Damage Inflicted 1232 | . 549 214 469 Guns 776 | . 549 214 13 Cannons 155 | . . . 155 Explosions 301 | . . . 301 Melee . | . . . . Ramming . | . . . . Kinetic 497 | . 342 . 155 Thermal 434 | . 207 214 13 Explosive 301 | . . . 301 Electromagnetic . | . . . . Impact . | . . . . Slashing . | . . . . Piercing . | . . . . Highest Corruption . | . . . . Average Corruption . | . . . . Corruption Purged . | . . . . Corruption Blocked . | . . . . Overload Shots . | . . . . Overflow Damage 50 | . . . 50 Projectiles . | . . . . Explosions 50 | . . . 50 Melee . | . . . . Knockbacks 2 | . . . 2 Impact . | . . . . Kinetic 2 | . . . 2 Secondary . | . . . . Self-Inflicted Damage . | . . . . Shots . | . . . . Rammed . | . . . . Targets Rammed . | . . . . Kicked . | . . . . Crushed . | . . . . Highest Temperature 292 | . 190 292 . Average Temperature 89 | . 69 135 . Received Heat Transfer 525 | . 495 . 30 Siege Activations . | . . . . Robots Corrupted . | . . . . Combat Hostiles . | . . . . Parts Fried . | . . . . Impact Corruptions . | . . . . Robots Melted . | . . . . Combat Hostiles . | . . . . Parts Melted 3 | . . 3 . Heat Transferred 1218 | . 475 706 37 Parts Sabotaged . | . . . . Parts Stolen . | . . . . Parts Stripped . | . . . . Power Chain Reactions . | . . . . Alert | -11 -10 -10 -10 ------- Run | Yrd Mat Min Sub Peak Influence 138 | . 138 80 . Initial 22 | . . 22 . Average 41 | . 70 27 . Maximum Alert Level . | . . . . Low Security (%) 100 | 100 100 100 . Level 1 . | . . . . Level 2 . | . . . . Level 3 . | . . . . Level 4 . | . . . . Level 5 . | . . . . High Security . | . . . . Max Security . | . . . . Squads Dispatched 2 | . 2 . . Investigation 2 | . 2 . . Extermination . | . . . . Reinforcement . | . . . . Assault . | . . . . Garrison . | . . . . Intercept . | . . . . Searches Triggered . | . . . . Construction Impeded . | . . . . Haulers Reinforced . | . . . . Active Scanning Responses . | . . . . Cargo Convoy Interrupts . | . . . . Stealth | -11 -10 -10 -10 --------- Run | Yrd Mat Min Sub Distress Signals 1 | . 1 . . Communications Jammed . | . . . . Distress Signals . | . . . . Times Spotted 29 | . 16 3 10 Peak Tracking Total 4 | . 4 3 3 Tactical Retreats 1 | . 1 . . Traps | -11 -10 -10 -10 ------- Run | Yrd Mat Min Sub Traps Triggered . | . . . . Indirectly . | . . . . Trap Hack Attempts . | . . . . Triggered . | . . . . Disarmed . | . . . . Reprogrammed . | . . . . Reused . | . . . . Traps Extracted . | . . . . Installed . | . . . . Triggered . | . . . . Machines | -11 -10 -10 -10 ---------- Run | Yrd Mat Min Sub Machines Disabled 1 | . . . 1 Max in Single Turn 1 | . . . 1 Machines Repaired . | . . . . Machines Dismantled . | . . . . Machines Sabotaged . | . . . . Overloaded Fab Kills . | . . . . Hacking | -11 -10 -10 -10 --------- Run | Yrd Mat Min Sub Machines Accessed 4 | . 3 . 1 Terminals 3 | . 3 . . Fabricators . | . . . . Repair Stations . | . . . . Recycling Units . | . . . . Scanalyzers . | . . . . Garrison Access . | . . . . Total Hacks 16 | . 7 . 9 Successful 11 | . 2 . 9 Failed 5 | . 5 . . Catastrophic . | . . . . Database Lockouts . | . . . . Manual 7 | . 5 . 2 Terminals 7 | . 7 . . Fabricators . | . . . . Repair Stations . | . . . . Recycling Units . | . . . . Scanalyzers . | . . . . Garrison Access . | . . . . Terminal Hacks 10 | . 1 . 9 Record 8 | . . . 8 Branch Access Points 1 | . 1 . . Derelict Proto ID Bank 1 | . . . 1 Fabricator Hacks . | . . . . Repair Station Hacks . | . . . . Recycling Unit Hacks . | . . . . Scanalyzer . | . . . . Garrison Access Hacks . | . . . . Unauthorized Hacks 1 | . 1 . . Terminals 1 | . 1 . . Assimilate 1 | . 1 . . Fabricators . | . . . . Repair Stations . | . . . . Recycling Units . | . . . . Scanalyzers . | . . . . Garrison Access . | . . . . Data Cores Recovered . | . . . . Used . | . . . . Hacking Detections 3 | . 3 . . Full Trace Events 2 | . 2 . . Feedback Events . | . . . . Feedback Blocked . | . . . . Robot Schematics Acquired . | . . . . Robots Built . | . . . . Authchips . | . . . . Time . | . . . . Total Robot Build Rating . | . . . . Part Schematics Acquired . | . . . . Parts Built . | . . . . Authchips . | . . . . Time . | . . . . Total Part Build Rating . | . . . . Parts Repaired . | . . . . Time . | . . . . Parts Recycled . | . . . . Recycled Matter . | . . . . Retrieved Matter . | . . . . Retrieved Components . | . . . . Parts Scanalyzed . | . . . . Part Schematics Acquired . | . . . . Parts Damaged . | . . . . Bothacking | -11 -10 -10 -10 ------------ Run | Yrd Mat Min Sub Used RIF Installer . | . . . . Robots Hacked . | . . . . Non-combat . | . . . . Combat . | . . . . Robot Hacks Applied . | . . . . Relay Couplers Released . | . . . . Fabnet Peak Effective % . | . . . . Robots Rewired . | . . . . Allies Hacked . | . . . . Hacks Repelled . | . . . . Allies | -11 -10 -10 -10 -------- Run | Yrd Mat Min Sub Total Allies 1 | . 1 . . Largest Group 1 | . 1 . . Highest-Rated Group 10 | . 10 . . Highest-Rated Ally 10 | . 10 . . Total Orders . | . . . . Ally Attacks . | . . . . Total Damage . | . . . . Kills . | . . . . Allies Corrupted . | . . . . Allies Melted . | . . . . Intel | -11 -10 -10 -10 ------- Run | Yrd Mat Min Sub Robot Analysis Total . | . . . . Derelict Logs Recovered 1 | . . 1 . Drone Launches . | . . . . Drone Recoveries . | . . . . Exploration | -11 -10 -10 -10 ------------- Run | Yrd Mat Min Sub Turns Passed 2837 | 41 540 1084 1172 Spaces Moved 1735 | 32 303 636 764 Core 5 | 5 . . . Treads 1225 | . 206 636 383 Legs 80 | . . . 80 Wheels 425 | 27 97 . 301 Hover . | . . . . Flight . | . . . . Fastest Speed 50 | 50 80 160 110 Average Speed 144 | 75 134 160 138 Slowest Speed 160 | 80 160 160 160 Overloaded Moves . | . . . . Propulsion Burnouts . | . . . . Robots Hopped . | . . . . Cave-ins Triggered . | . . . . Exploration Rate (%) 40 | 3 35 96 28 Regions Visited 3 Branch Regions 2 Pre-discovered Areas . | . . . . Known Exits Taken 1 | . 1 . . Unknown Exits Taken 2 | 1 . 1 . Scrap Searched 6 | . . 1 5 Spaces Dug . | . . . . Terrain Destroyed 18 | . . . 18 Melee . | . . . . Projectile . | . . . . AOE 18 | . . . 18 Terrain Rammed . | . . . . Walls Destroyed . | . . . . Machines Disabled . | . . . . Actions | -11 -10 -10 -10 --------- Run | Yrd Mat Min Sub Total 1941 | 48 367 683 843 Wait 51 | . 11 25 15 Move 1732 | 31 302 635 764 Hop . | . . . . Pick Up 30 | 11 6 6 7 Fast Attach 9 | 1 1 . 7 Attach 14 | 5 6 1 2 Detach 1 | . . . 1 Swap 5 | . . 1 4 Drop 19 | . 1 4 14 Fire 80 | . 40 11 29 Melee . | . . . . Ram . | . . . . Kick . | . . . . Crush . | . . . . Escape Stasis . | . . . . Rewire . | . . . . Trap . | . . . . Miscellaneous . | . . . . Route ------- -11/Scrapyard -10/Materials -10/Mines (discovered 3 exits: [*Mat x2] / *Sub) -10/Subcaves (discovered 2 exits: [*Mat] / Rec) History --------- Turn | Location | Event 15 | -11/Scrapyard | Discovered new exit (range 14) 42 | -11/Scrapyard | Entered Materials 81 | -10/Materials | Identified exit to Mines 202 | -10/Materials | Core integrity fell below 50% 228 | -10/Materials | Lost 5 parts (1p2n1u1w) 306 | -10/Materials | Build established: Mutant 582 | -10/Materials | Entered Mines 592 | -10/Mines | Received a Rocket Launcher from a helpful Derelict 807 | -10/Mines | Discovered new exit (range 9) 944 | -10/Mines | A weapon hastily lodged in a ceiling crevice suddenly fell to the ground 1120 | -10/Mines | Discovered new exit (range 5) 1655 | -10/Mines | Discovered new exit (range 7) 1666 | -10/Mines | Entered Subcaves 1667 | -10/Subcaves | Identified exit to Recycling 2396 | -10/Subcaves | A swath of the cavern ceiling suddenly collapsed 2534 | -10/Subcaves | Visited 4L-MR0's lab 2564 | -10/Subcaves | Found Power Bank 2699 | -10/Subcaves | Discovered new exit (range 15) 2831 | -10/Subcaves | Core integrity fell below 20% 2838 | -10/Subcaves | Destroyed by 9H-U0O(R) with Subdweller Laser Last Messages --------------- somewhere as if it were useless junk..." Testing Chamber breached. Dropped Aluminum Leg. Acquired Power Bank. Connecting with 4L-MR0's Prototype Logs... JV-TS7(u) builds Twisted Machinery. Acquired 8 matter. Acquired 32 matter. Sub. Monowheel shoots sparks and powers down. Subatomizers dissect the Med. Laser, destroying it. Dropped Broken Sub. Monowheel. EXIT=FOUND Acquired Mak. Leg. Acquired 10 matter. Dropped Lrg. Matter Pod. Acquired Mak. Hammer. S-10 Pest destroyed. QH-SXG(R) knocked back. QH-SXG(R) destroyed. Map ----- +----------------------------------------------------+ | ?????????????????????????????????????????????????? | | ?????????????????????????????????????????????????? | | ?????????????????????????????????????????????????? | | ?????????????????????????????????????????????????? | | ?????????????????????????????????????????????????? | | ?????????????????????????????????????????????????? | | ?????????????????????????????????????????????????? | | ?????????????????????????????????????????????????? | | ?????????????????????????????????????????????????? | | ?????????????????????????????????????????????????? | | ??????????????????????????###????????????????????? | | ?????????????????????????## ????? ??????????????? | | ????????????????????????## ????????????????????? | | ????????????????????????# #?###????????????????? | | ????????????????????????# ## ##?#?????????????? | | ???????????????????????## "###""???????????? | | ???????????????????##### ""#???????????? | | ???????????????????# % " ""#???????????? | | ?????????????? " ""#???????????? | | ?????????????????????# ####%% " ""????????? | | ??????????????????#??????##%R #### " ???????? | | ?????????????????????????# &%##????? =%???????? | | ???????????#??#???????#??# ##????????##%???????? | | ??????????????????????#?## #????? ????????????? | | ?????????????????#???# ## ###??????????????????? | | ??????????????????????# @ #????????????????????? | | ???????????????????#### #?????#?#????????????? | | ???????????????????# ## #????????#???????????? | | ??????????????????## ### #????????????????????? | | ???????????#????#?# ## #????????????????????? | | ??????????????????## # #????#???? ??????????? | | ??????????????????## ## ???? ???????????????? | | ?????????????????## ### ?? ????????????????? | | ?????????????????# < ## # #?????????????????? | | ???????????????#?# ###??#??????????????? | | ????????????#????# ###????#??????????? | | ?????????????????## ## # ##?#????????????? | | ??????????????????## #?## [ ##???? ?#??????? | | ???????????????????## #####%= #??????????????? | | ???????????????????## ## ###%! ##??? ??????????? | | ???????????????????# ## !##???????????????? | | ???????????????????## ## #???#????????????? | | ???????????????????# ## #????????????????? | | ???????????????????##?## ##??????#????????? | | ??????????????????#??#?# #????########???# | | ?????????????????????### #????## ##???? | | ?????????????????????# #???## #???? | | ????????????????#???## ##?## #????? | | ???????????????????## ## ### #????? | | ?????????????#?????# #### ##???? | +----------------------------------------------------+ Best States ------------- Heat Dissipation 25 Energy Generation 15 Energy Capacity 250 Matter Stores 300 Matter Capacity 300 Sight Range 16 Terrain Scan Range 14 Terrain Scan Density 10 Armor Coverage 150 Evasion (%) 55 Recoil Reduction 2 Item Schematics ----------------- None Robot Schematics ------------------ None Fabricated ------------ Nothing Alien Tech Used ----------------- None Achievements -------------- None Challenges ------------ None Game ------ Seed CoolantBombCloak Manual? 0 Play Time 00:26:48 Cumulative 31.7 hours Start 2024.08.03 @ 01:30:13 End 2024.08.03 @ 12:57:43 Sessions 3 Manual Loads 0 Difficulty Rogue Special Mode None Game No. 21 Rogue 9 Adventurer 12 Explorer 0 Win Type - Total 0 Types 0/0/0/0/0/0/0/0/0 Lore% 15 Gallery% 22 Achievement% 20 Wizard Run 0 Options --------- Layout 1 ASCII 0 Keyboard 0 Movement Numpad Keybinds 0 Fullscreen 1 Font 24/Smallcaps Map View 50x35 Zoom Use 2% Tactical HUD 0 Map Filters NONE Filters NONE Steam 1 RUN: 2c47996e-1405-40fd-b2cd-f8aa3e8075ae